Workbook

Sheet Acceuil
E7: COMITE INTERMINISTERIEL DE PILOTAGE DE LA POLITIQUE NATIONALE DE DECENTRALISATION ET DE DECONCENTRATION (CIP-PONADEC)
E8: SECRETARIAT PERMANENT
E10: Calcul de l'Indice de bonne Gouvernance Locale (IGL)
F12: Département | G12: ALIBORI | I12: Commune | J12: BANIKOARA | O12: Année : | P12: 2022
E17: Informations à saisir par catégorie
G19: Budget | L19: Cadres de Concertation
G20: Conseil Communal | L20: Tutelle
G21: Conseil d'Arrondissement | L21: Marchés
G22: Conseil de Village | L22: Services délégués
G23: Commissions Permanentes | L23: Autres données

Sheet Budget
A1: Retour à l'accueil
A2: Prévision | D2: Réalisation | K2: Autres données financieres
A3: Montant du budget | B3: Recette fiscales | C3: PAI | D3: Dépenses d'investissement | G3: Dépenses totales de fonctionnement | H3: Dépenses d'entretien des équipements et ouvrages | I3: Recettes fiscales | J3: PAI | K3: Montant des ressources propres de l'année 2021 | L3: Montant des ressources propres de l'année 2022 | M3: Montant des cotisations versées à échéance (Intercommunalité et Association de communes) | N3: Montant des cotisations dues à échéance (Intercommunalité et Association de communes)
D4: Ressources propres (Auto financement) | E4: Investissement provenant de la coopération décentralisée | F4: Autres ressources
A5: 2614941026 | B5: 484894647 | C5: 1580715372 | D5: 663708231 | E5: 0 | F5: 917007141 | G5: 591290767 | H5: 15400000 | I5: 608931929 | J5: 1580715372 | K5: 662517614 | L5: 616990647 | M5: 14500000 | N5: 14500000

Sheet CC
A1: Retour à l'accueil
A2: Tenue des Sessions ordinaires
A3: Nombre de réunions de municipalité tenues | D3: 10
A4: Nombre d'élus du Conseil Communal | D4: 33
A5: Sessions | B5: Nombre d'élus présents | C5: Date début session | D5: Date fin session | E5: Date affichage relevé session | F5: Production du rapport d'activités du Maire | H5: dif | I5: delai
A6: Session N°1 | B6: 30 | C6: 2022-03-01 | D6: 2022-03-09 | E6: 2022-03-09 | F6: OUI | H6: =IF(OR(D6="",E6=""),-1,DATEDIF(D6,E6,"d")) -> 0 | I6: =IF(OR(H6<0,H6>8),0,1) -> 1
A7: Session N°2 | B7: 30 | C7: 2022-04-26 | D7: 2022-04-27 | E7: 2022-04-27 | F7: OUI | H7: =IF(OR(D7="",E7=""),-1,DATEDIF(D7,E7,"d")) -> 0 | I7: =IF(OR(H7<0,H7>8),0,1) -> 1
A8: Session N°3 | B8: 32 | C8: 2022-07-28 | D8: 2022-07-28 | E8: 2022-07-28 | F8: OUI | H8: =IF(OR(D8="",E8=""),-1,DATEDIF(D8,E8,"d")) -> 0 | I8: =IF(OR(H8<0,H8>8),0,1) -> 1
A9: Session N°4 | B9: 32 | C9: 2022-10-26 | D9: 2022-10-27 | E9: 2022-10-27 | F9: OUI | H9: =IF(OR(D9="",E9=""),-1,DATEDIF(D9,E9,"d")) -> 0 | I9: =IF(OR(H9<0,H9>8),0,1) -> 1

Sheet CA
A1: Retour à l'accueil
A2: Arrondissements | B2: Nombre de sessions de conseils d’arrondissement tenues
A3: FOUNOUGO | B3: 9
A4: GOMPAROU | B4: 10
A5: GOUMORI | B5: 4
A6: KOKEY | B6: 9
A7: KOKIBOROU | B7: 10
A8: OUNET | B8: 4
A9: SOMPEROUKOU | B9: 2
A10: SOROKO | B10: 12
A11: TOURA | B11: 4
A12: BANIKOARA | B12: 4

Sheet CV
A1: Retour à l'accueil
A2: Arrondissements | B2: Villages | C2: Nombre de réunions de conseils de village tenues au cours de l’année | D2: Section Villagoise\urbaine de Gestion Fonctiere (SVGF et SUGF)
D3: Enquetes Publiques Contradictoires (EPC)
D4: Nombre de demandes effectuées | E4: Nombre de demandes réalisées
A5: FOUNOUGO | B5: BOFOUNOU | C5: 0 | D5: 0 | E5: 0
B6: FOUNOUGO-BOUTERA | C6: 0 | D6: 0 | E6: 0
B7: FOUNOUGO-GAH | C7: 0 | D7: 0 | E7: 0
B8: FOUNOUGO-GOROBANI | C8: 1 | D8: 0 | E8: 0
B9: GAMA | C9: 0 | D9: 5 | E9: 3
B10: GAMERE-ZONGO | C10: 1 | D10: 0 | E10: 0
B11: GOUGNIROU | C11: 1 | D11: 0 | E11: 0
B12: GOUGNIROU-GAH | C12: 0 | D12: 0 | E12: 0
B13: IBOTO | C13: 0 | D13: 0 | E13: 0
B14: IGRIGOU | C14: 1 | D14: 3 | E14: 2
B15: KANDEROU | C15: 1 | D15: 1 | E15: 1
B16: KANDEROU-KOTCHERA | C16: 0 | D16: 2 | E16: 1
B17: KONEY | C17: 0 | D17: 0 | E17: 0
B18: KPAKO-GBABI | C18: 0 | D18: 0 | E18: 0
B19: POGOUSSOROU | C19: 1 | D19: 4 | E19: 2
B20: SAMPETO | C20: 0 | D20: 0 | E20: 0
B21: SISSIANGANROU | C21: 1 | D21: 0 | E21: 0
B22: YANGUERI | C22: 1 | D22: 2 | E22: 1
B23: YINYINPOGOU | C23: 0 | D23: 2 | E23: 2
A24: GOMPAROU | B24: BONHANROU | C24: 3 | D24: 5 | E24: 4
B25: GNAMBANOU | C25: 4 | D25: 3 | E25: 2
B26: GOMPAROU | C26: 0 | D26: 0 | E26: 0
B27: GOMPAROU GOUSSINROU | C27: 3 | D27: 0 | E27: 0
B28: GOMPAROU-GOKPADOU | C28: 3 | D28: 0 | E28: 0
B29: GOURE-EDE | C29: 3 | D29: 0 | E29: 0
B30: KALI | C30: 3 | D30: 1 | E30: 1
B31: KPESSANROU | C31: 3 | D31: 3 | E31: 2
B32: NIEKOUBANTA | C32: 3 | D32: 2 | E32: 2
B33: PAMPIME | C33: 3 | D33: 2 | E33: 0
B34: SIONKPEKOKA | C34: 3 | D34: 1 | E34: 0
B35: TIGANSON | C35: 3 | D35: 0 | E35: 0
B36: YOSSINANDE | C36: 3 | D36: 2 | E36: 1
A37: GOUMORI | B37: BONNI | C37: 1 | D37: 2 | E37: 1
B38: BONTE | C38: 0 | D38: 3 | E38: 1
B39: DOMBOURE | C39: 1 | D39: 0 | E39: 0
B40: DOMBOURE-GAH | C40: 0 | D40: 4 | E40: 3
B41: DONDAGOU | C41: 0 | D41: 0 | E41: 0
B42: GBANGBANGA | C42: 1 | D42: 0 | E42: 0
B43: GBASSA | C43: 0 | D43: 5 | E43: 3
B44: GOUMORI-BAYEDOU | C44: 0 | D44: 0 | E44: 0
B45: GOUMORI-GAH | C45: 0 | D45: 0 | E45: 0
B46: GOUMORI-GBISSAROU | C46: 1 | D46: 0 | E46: 0
B47: MONDOUKOKA | C47: 0 | D47: 0 | E47: 0
B48: MONDOUKOKA-GAH | C48: 0 | D48: 2 | E48: 2
B49: SAKASSINNOU | C49: 1 | D49: 0 | E49: 0
B50: SATOUBA | C50: 0 | D50: 3 | E50: 2
B51: TIHOURE | C51: 0 | D51: 1 | E51: 1
A52: KOKEY | B52: GAMAROU | C52: 2 | D52: 5 | E52: 4
B53: KOKEY-FILO | C53: 2 | D53: 0 | E53: 0
B54: KOKEY-SINAKPAROU | C54: 1 | D54: 0 | E54: 0
B55: NIMBERE | C55: 1 | D55: 3 | E55: 2
B56: PIGUIRE | C56: 1 | D56: 4 | E56: 2
B57: SONWARI | C57: 2 | D57: 5 | E57: 3
B58: YAMBEROU | C58: 2 | D58: 4 | E58: 4
A59: KOKIBOROU | B59: BONKERE | C59: 1 | D59: 2 | E59: 1
B60: GUINNINGOU-GAH | C60: 1 | D60: 2 | E60: 2
B61: KOKIBOROU | C61: 1 | D61: 0 | E61: 0
B62: SIRIKOU | C62: 1 | D62: 0 | E62: 0
B63: SOUNSOUN | C63: 1 | D63: 6 | E63: 3
A64: OUNET | B64: BONIKI | C64: 0 | D64: 5 | E64: 4
B65: KIHOUHOU | C65: 0 | D65: 1 | E65: 1
B66: KPEBOROGOU | C66: 0 | D66: 2 | E66: 2
B67: OUNET-GAH | C67: 0 | D67: 0 | E67: 0
B68: OUNET-SEKOGBAOUROU | C68: 0 | D68: 0 | E68: 0
B69: OUNET-SINAKPAROU | C69: 0 | D69: 0 | E69: 0
B70: SONNOU | C70: 0 | D70: 3 | E70: 3
B71: SONNOU-GAH | C71: 0 | D71: 4 | E71: 4
A72: SOMPEROUKOU | B72: BONYANGOU | C72: 1 | D72: 4 | E72: 4
B73: BOURIN | C73: 0 | D73: 2 | E73: 2
B74: GNANDAROU | C74: 1 | D74: 4 | E74: 4
B75: KEGAMOROU | C75: 1 | D75: 0 | E75: 0
B76: POTO | C76: 1 | D76: 7 | E76: 5
B77: POTO-GAH | C77: 1 | D77: 0 | E77: 0
B78: SIMPEROU | C78: 1 | D78: 5 | E78: 5
B79: SIMPEROU-GAH | C79: 1 | D79: 3 | E79: 3
B80: SOMPEROUKOU-GAH | C80: 1 | D80: 0 | E80: 0
B81: SOMPEROUKOU-GBESSARA | C81: 1 | D81: 0 | E81: 0
B82: SOMPEROUKOU-YOROUNON | C82: 1 | D82: 0 | E82: 0
A83: SOROKO | B83: GBENIKI | C83: 0 | D83: 8 | E83: 8
B84: MEKROU | C84: 0 | D84: 6 | E84: 6
B85: SOROKO | C85: 1 | D85: 0 | E85: 0
B86: SOROKO GAH | C86: 0 | D86: 5 | E86: 5
B87: SOROKO YOROUNON | C87: 1 | D87: 0 | E87: 0
B88: SOUDOU | C88: 0 | D88: 6 | E88: 6
A89: TOURA | B89: ATABENOU | C89: 1 | D89: 10 | E89: 10
B90: GNAMBOURANKOROU | C90: 1 | D90: 4 | E90: 3
B91: GUIMBAGOU | C91: 1 | D91: 9 | E91: 9
B92: KAKOUROGOU | C92: 1 | D92: 1 | E92: 1
B93: SIWOUGOUROU | C93: 0 | D93: 0 | E93: 0
B94: TINTINMOU | C94: 1 | D94: 2 | E94: 2
B95: TINTINMOU-GAH | C95: 1 | D95: 0 | E95: 0
B96: TOURA GAH | C96: 1 | D96: 1 | E96: 1
B97: TOURA-BIO N'WOROU | C97: 1 | D97: 0 | E97: 0
B98: TOURA-YOKPAROU | C98: 1 | D98: 0 | E98: 0
A99: BANIKOARA | B99: ARBONGA | C99: 2 | D99: 10 | E99: 10
B100: AVIATION | C100: 1 | D100: 0 | E100: 0
B101: BATRAN | C101: 1 | D101: 7 | E101: 6
B102: DEMANOU | C102: 1 | D102: 0 | E102: 0
B103: DEROU GAROU | C103: 0 | D103: 0 | E103: 0
B104: GLEGBABI | C104: 0 | D104: 0 | E104: 0
B105: GUIGUIRI | C105: 0 | D105: 3 | E105: 2
B106: KINGAROU | C106: 0 | D106: 3 | E106: 3
B107: KOKIRE | C107: 1 | D107: 0 | E107: 0
B108: KOMMON | C108: 1 | D108: 0 | E108: 0
B109: KORI GUIGUIRI | C109: 2 | D109: 2 | E109: 1
B110: KPAGAGUEDOU | C110: 1 | D110: 0 | E110: 0
B111: OROU GNONROU | C111: 0 | D111: 0 | E111: 0
B112: SAMANGA | C112: 2 | D112: 2 | E112: 2
B113: TOKEY-BANTA | C113: 1 | D113: 0 | E113: 0
B114: WAGOU | C114: 1 | D114: 0 | E114: 0
B115: WETEROU | C115: 1 | D115: 0 | E115: 0
B116: YADIKPAROU | C116: 1 | D116: 0 | E116: 0

Sheet CP
A1: Retour à l'accueil
A2: Tenue des sessions ordinaires des commissions permanentes
A3: Commissions permanentes (CP) | B3: Nom de la commission | C3: Effectif des membres | D3: Réunion N°1 | G3: Réunion N°2 | J3: Réunion N°3 | M3: Réunion N°4 | P3: Réunion N°5 | S3: Réunion N°6 | V3: Réunion N°7 | Y3: Réunion N°8 | AB3: Réunion N°9 | AE3: Réunion N°10 | AH3: Réunion N°11 | AK3: Réunion N°12
D4: Nombre de membres presents | E4: Nombre de propositions faites | F4: Nombre de propositions réalisées par le Maire | G4: Nombre de membres presents | H4: Nombre de propositions faites | I4: Nombre de propositions réalisées par le Maire | J4: Nombre de membres presents | K4: Nombre de propositions faites | L4: Nombre de propositions réalisées par le Maire | M4: Nombre de membres presents | N4: Nombre de propositions faites | O4: Nombre de propositions réalisées par le Maire | P4: Nombre de membres presents | Q4: Nombre de propositions faites | R4: Nombre de propositions réalisées par le Maire | S4: Nombre de membres presents | T4: Nombre de propositions faites | U4: Nombre de propositions réalisées par le Maire | V4: Nombre de membres presents | W4: Nombre de propositions faites | X4: Nombre de propositions réalisées par le Maire | Y4: Nombre de membres presents | Z4: Nombre de propositions faites | AA4: Nombre de propositions réalisées par le Maire | AB4: Nombre de membres presents | AC4: Nombre de propositions faites | AD4: Nombre de propositions réalisées par le Maire | AE4: Nombre de membres presents | AF4: Nombre de propositions faites | AG4: Nombre de propositions réalisées par le Maire | AH4: Nombre de membres presents | AI4: Nombre de propositions faites | AJ4: Nombre de propositions réalisées par le Maire | AK4: Nombre de membres presents | AL4: Nombre de propositions faites | AM4: Nombre de propositions réalisées par le Maire
A5: CP N°1 | B5: Commission des Affaires Economiques et Financieres (CAEF) | C5: 7 | D5: 7 | E5: 5 | F5: 3 | G5: 7 | H5: 2 | I5: 2 | AP5: =C5*COUNTA(D5,G5,J5,M5,S5,V5,Y5,AB5,AE5,AH5,AK5) -> 14
A6: CP N°2 | B6: Commission des Affaires Domaniales et Environnementales (CADE) | C6: 11 | D6: 11 | E6: 7 | F6: 7 | H6: 6 | I6: 6 | J6: 10 | K6: 1 | L6: 1 | M6: 11 | N6: 6 | O6: 5 | P6: 10 | Q6: 9 | R6: 7 | AP6: 33
A7: CP N°3 | B7: Commission des Affaires Sociales et Culturelles (CASC) | C7: 9 | D7: 9 | E7: 6 | F7: 3 | G7: 9 | H7: 2 | I7: 2 | J7: 8 | K7: 1 | L7: 1 | M7: 7 | N7: 3 | O7: 3 | P7: 8 | Q7: 3 | R7: 3 | S7: 8 | T7: 2 | U7: 2 | AP7: 45
A8: CP N°4 | B8: Commission ad'hoc de l'agricultures, de l'élévage et la pêche | C8: 9 | D8: 9 | E8: 2 | F8: 2 | G8: 8 | H8: 1 | I8: 1 | J8: 9 | K8: 7 | L8: 7 | M8: 9 | N8: 1 | O8: 1 | P8: 6 | Q8: 4 | R8: 4 | S8: 8 | T8: 4 | U8: 4 | V8: 6 | W8: 3 | X8: 3 | Y8: 8 | Z8: 4 | AA8: 4 | AP8: 63
A9: CP N°5 | AP9: 0
A10: CP N°6 | AP10: 0
A11: CP N°7 | AP11: 0
A12: CP N°8 | AP12: 0
A13: CP N°9 | AP13: 0
A14: CP N°10 | AP14: 0
A15: Nombre | C15: =COUNT(C5:C14) -> 4 | D15: 4 | E15: 4 | F15: 4 | G15: 3 | H15: 4 | I15: 4 | J15: 3 | K15: 3 | L15: 3 | M15: 3 | N15: 3 | O15: 3 | P15: 3 | Q15: 3 | R15: 3 | S15: 2 | T15: 2 | U15: 2 | V15: 1 | W15: 1 | X15: 1 | Y15: 1 | Z15: 1 | AA15: 1 | AB15: 0 | AC15: 0 | AD15: 0 | AE15: 0 | AF15: 0 | AG15: 0 | AH15: 0 | AI15: 0 | AJ15: 0 | AK15: 0 | AL15: 0 | AM15: 0 | AP15: =SUM(AP5:AP14) -> 155
A16: Effectif | C16: =SUM(C5:C14) -> 36 | D16: 36 | E16: 20 | F16: 15 | G16: 24 | H16: 11 | I16: 11 | J16: 27 | K16: 9 | L16: 9 | M16: 27 | N16: 10 | O16: 9 | P16: 24 | Q16: 16 | R16: 14 | S16: 16 | T16: 6 | U16: 6 | V16: 6 | W16: 3 | X16: 3 | Y16: 8 | Z16: 4 | AA16: 4 | AB16: 0 | AC16: 0 | AD16: 0 | AE16: 0 | AF16: 0 | AG16: 0 | AH16: 0 | AI16: 0 | AJ16: 0 | AK16: 0 | AL16: 0 | AM16: 0

Sheet Cadres de Concertation
A1: Retour à l'accueil
A2: Tenue des Cadres de Concertation
A3: Mairie-SDE | F3: Autres Cadres
A4: Effectif des membres du Cadre de Concertation Mairie-SDE | C4: 18 | F4: Education | G4: Eau, Hygiène et Assainissement | H4: Agricole | I4: Maire et OSC | J4: Nutrition | K4: Sport | L4: Autres
A5: Nombre de sessions prévues | C5: 2
A6: Sessions | B6: Effectif présent | C6: Date | D6: Nombre de séances tenues | F6: 2 | H6: 3 | I6: 2 | J6: 4 | K6: 1 | L6: 2
A7: Session N°1 | B7: 13 | C7: 2022-07-06
A8: Session N°2 | B8: 14 | C8: 2022-12-29
A9: Session N°3
A10: Session N°4
A11: Session N°5
A12: Session N°6
A13: Session N°7
A14: Session N°8
A15: Session N°9
A16: Session N°10
A17: Session N°11
A18: Session N°12

Sheet Tutelle
A1: Retour à l'accueil
A2: Participation aux CDCC | E2: Budget communal (Budget primitif) | F2: Le budget est transmis ou pas. | H2: TRANSMIS
A3: Effectif (Maire et ses adjoints) | C3: 3 | F3: Date d'adoption du budget | H3: 2021-11-25
A4: Sessions | B4: Effectif présent | C4: Date début session | D4: Date fin session | F4: Date de transmission du budget à la tutelle | H4: 2021-12-10
A5: CDCC N°1 | B5: 3 | C5: 2022-01-31 | D5: 2022-01-31 | F5: Date d'approbation du budget par la tutelle | H5: 2022-01-11
A6: CDCC N°2 | B6: 3 | C6: 2022-11-08 | D6: 2022-11-08 | E6: Compte Administratif | F6: Le compte administratif est transmis ou pas. | H6: TRANSMIS
A7: Conformité des actes | F7: Date d'adoption du compte administratif de l'année 2021 | H7: 2023-03-20
A8: Nombre d’actes conformes | D8: 51 | F8: Date de transmission à la tutelle | H8: 2023-03-27
A9: Nombre d’actes soumis pour approbation | D9: 72 | F9: Date d'approbation du compte administratif par la tutelle | H9: 2022-07-29

Sheet Marchés
A1: Retour à l'accueil
A2: Type de commune | E2: Commune ordinaire
A3: Plan de passation des marchés publics publiés | E3: OUI
A4: Nombre de marchés publics passés hors plan de passation des marchés | E4: 0
A5: Nombre de marchés conclus dans l'année | E5: 24
A6: Nombre de marchés conclus dans l’année ayant respecté les procédures | E6: 20
A7: Mode de passation | B7: Délai de passation | C7: Marché N°1 | E7: Marché N°2 | G7: Marché N°3 | I7: Marché N°4 | K7: Marché N°5 | M7: Marché N°6 | O7: Marché N°7 | Q7: Marché N°8 | S7: Marché N°9 | U7: Marché N°10 | W7: Marché N°11 | Y7: Marché N°12 | AA7: Marché N°13 | AC7: Marché N°14 | AE7: Marché N°15 | AG7: Marché N°16 | AI7: Marché N°17 | AK7: Marché N°18 | AM7: Marché N°19 | AO7: Marché N°20 | AQ7: Marché N°21 | AS7: Marché N°22 | AU7: Marché N°23 | AW7: Marché N°24
C8: Travaux de construction des infrastructures scolaires: Travaux de construction d’un (01) module de trois classes avec bureau et magasin équipés de 75 table-bancs, 6 chaises, 3 tables maître, 1 bureau directeur et avec latrine à 4 cabines à l’EPP de BADAGOU, arrondissement de Toura dans la commune de Banikoara (Lot1). | E8: Travaux de construction des infrastructures scolaires: Travaux de construction d’un (01) module de trois classes avec bureau et magasin équipés de 75 table-bancs, 6 chaises, 3 tables maître, 1 bureau directeur et avec latrine à 4 cabines à l’EPP de GAANI, arrondissement de Goumori dans la commune de Banikoara (Lot2). | G8: Travaux de construction des infrastructures scolaires: Travaux de construction d’un (01) module de trois classes avec bureau et magasin équipés de 75 table-bancs, 6 chaises, 3 tables maître, 1 bureau directeur et avec latrine à 4 cabines à l’EPP de Tokey, arrondissement de Banikoara dans la commune de Banikoara (Lot3). | I8: Acquisition de quatre (04) tricycles, de (100) poubelles ordinaires et les petits matériels pour la pré-collecte (bottes, cache-nez, râteaux, brouettes, pelles, gants, brosses, barre à main et blouson fluorescent). | K8: Travaux de réfection des infrastructures scolaires (Gningnimpogou et Demamou) | M8: Entretien et nettoyage des bureaux de l’hôtel de ville de Banikoara. | O8: Entretien et nettoyage des espaces verts de l’hôtel de ville de Banikoara. | Q8: Contrôle et suivi des travaux d'assainissement de la ville de Gomparou (Rue EPP Gomparou-Maison Adam ALIDOU -Maison IMAM Idrissou) dans la Commune de Banikoara. | S8: Contrôle des travaux de construction de cinq (05) modules de trois (03) classes avec bureau-magasin avec cinq (05) blocs de latrine VIP à 4 cabines et équipements dans les EPP de BADAGOU, de GAANI, de TOKEY, de BIWIRI et de BONKERE dans la commune de Banikoara. | U8: Contrôle des travaux de construction de la maison des jeunes de Ounet dans la commune de Banikoara. | W8: Travaux de réalisation de la clôture et connexe du logement du Médecin Chef du Centre de Santé Communal (CSCom) de Banikoara | Y8: Acquisition de mobiliers scolaires constitués de 130 tables et bancs au profit des écoles primaires publiques de Banikoara | AA8: Acquisition de fournitures de bureau et autres consommables au profit de la Mairie de Banikoara | AC8: Entretien et curage des ouvrages de voirie et d'assainissement dans la commune de Banikoara | AE8: Réalisation d'un Système Informatisé pour la gestion performante du Service des Affaires Domaniales et du Foncier plus équipement au profit de la Commune de Banikoara | AG8: Travaux de réfection de deux modules de trois classes plus bureaux et magasins à l'EPP SIMPEROU et à l’EPP DEROU GANRO dans la Commune de BANIKOARA | AI8: Travaux d’entretien courant des ITR par la méthode HIMO dans la Commune de Banikoara : Axe Niékoubanta-Kokey-Soumabougou (lot1) | AK8: Travaux d’entretien courant des ITR par la méthode HIMO dans la Commune de Banikoara : Axe Kokey-Founougo (lot2) | AM8: Acquisition de dix (10) Ordinateurs de Bureau, cinq (05) imprimantes, de cinq (05) ordinateurs portatifs, d'une imprimante couleur et d'une imprimante de grande capacité, d'un serveur pour les logiciels de gestion (GBCO, Guichet Unique etc…), de quinze (15) régulateurs et quinze (15) onduleurs destinés à la Mairie de Banikoara pour le fonctionnement | AO8: Acquisition de lits métalliques d'hospitalisation simple en fabrication locale avec matelas en similicuir et potences sérum l’Acquisition de lits métalliques d'hospitalisation simple en fabrication locale avec matelas en similicuir et potences sérum | AQ8: Travaux de sécurisation et de balisage des couloirs de passage dans le commune de Banikaora: axe Banikoara-Goumonri-frontière Kèrou | AS8: Travaux de réhabilitation des bâtiments annexes et confortatifs sur le bâtiment principal de l'hôtel de ville | AU8: Travaux de réhabilitation de la maison des jeunes de Soroko (forme dallage, protection, toiture, charpente, forme de pente, marches, électricité, plafond, enduits et peinture | AW8: Acquisition de vivriers pour distribution aux sinistrés des risques et catastrophes naturelles dans la commune de banikoara, et sensibilisation de la population sur la réalisation des pare feux pour environnement sain
B9: 86 | C9: Type de marchés publics | D9: Nombre de jours consacrés à la passation | E9: Type de marchés publics | F9: Nombre de jours consacrés à la passation | G9: Type de marchés publics | H9: Nombre de jours consacrés à la passation | I9: Type de marchés publics | J9: Nombre de jours consacrés à la passation | K9: Type de marchés publics | L9: Nombre de jours consacrés à la passation | M9: Type de marchés publics | N9: Nombre de jours consacrés à la passation | O9: Type de marchés publics | P9: Nombre de jours consacrés à la passation | Q9: Type de marchés publics | R9: Nombre de jours consacrés à la passation | S9: Type de marchés publics | T9: Nombre de jours consacrés à la passation | U9: Type de marchés publics | V9: Nombre de jours consacrés à la passation | W9: Type de marchés publics | X9: Nombre de jours consacrés à la passation | Y9: Type de marchés publics | Z9: Nombre de jours consacrés à la passation | AA9: Type de marchés publics | AB9: Nombre de jours consacrés à la passation | AC9: Type de marchés publics | AD9: Nombre de jours consacrés à la passation | AE9: Type de marchés publics | AF9: Nombre de jours consacrés à la passation | AG9: Type de marchés publics | AH9: Nombre de jours consacrés à la passation | AI9: Type de marchés publics | AJ9: Nombre de jours consacrés à la passation | AK9: Type de marchés publics | AL9: Nombre de jours consacrés à la passation | AM9: Type de marchés publics | AN9: Nombre de jours consacrés à la passation | AO9: Type de marchés publics | AP9: Nombre de jours consacrés à la passation | AQ9: Type de marchés publics | AR9: Nombre de jours consacrés à la passation | AS9: Type de marchés publics | AT9: Nombre de jours consacrés à la passation | AU9: Type de marchés publics | AV9: Nombre de jours consacrés à la passation | AW9: Type de marchés publics | AX9: Nombre de jours consacrés à la passation
A10: Appel Offre Ouvert | B10: 46 | C10: Travaux | D10: 90 | E10: Travaux | F10: 90 | G10: Travaux | H10: 90
A11: Demande de renseignement | B11: 27 | C11: Travaux | I11: DRP | J11: 90 | K11: DRP | L11: 90 | M11: DC | N11: 30 | O11: DC | P11: 30 | AA11: DRP | AB11: 30 | AI11: DRP | AJ11: 90 | AK11: DRP | AL11: 90 | AO11: DRP | AP11: 90 | AQ11: DRP | AR11: 90 | AS11: DRP | AT11: 90 | AU11: DRP | AV11: 90
A12: Demande de cotation | B12: 65 | C12: Travaux | Q12: DC | R12: 30 | S12: DC | T12: 30 | U12: DC | V12: 30 | W12: DC | X12: 30 | Y12: DC | Z12: 30 | AC12: DC | AD12: 30 | AE12: DC | AF12: 30 | AG12: DC | AH12: 30 | AM12: DC | AN12: 30 | AW12: DC | AX12: 30
D13: =IF(C10="",0,IF(D10<=$B10,1,0)) -> 0 | F13: =IF(E10="",0,IF(F10<=$B10,1,0)) -> 0 | H13: =IF(G10="",0,IF(H10<=$B10,1,0)) -> 0 | J13: =IF(I10="",0,IF(J10<=$B10,1,0)) -> 0 | L13: =IF(K10="",0,IF(L10<=$B10,1,0)) -> 0 | N13: =IF(M10="",0,IF(N10<=$B10,1,0)) -> 0 | P13: =IF(O10="",0,IF(P10<=$B10,1,0)) -> 0 | R13: =IF(Q10="",0,IF(R10<=$B10,1,0)) -> 0 | T13: =IF(S10="",0,IF(T10<=$B10,1,0)) -> 0 | V13: =IF(U10="",0,IF(V10<=$B10,1,0)) -> 0 | X13: =IF(W10="",0,IF(X10<=$B10,1,0)) -> 0 | Z13: =IF(Y10="",0,IF(Z10<=$B10,1,0)) -> 0 | AB13: =IF(AA10="",0,IF(AB10<=$B10,1,0)) -> 0 | AD13: =IF(AC10="",0,IF(AD10<=$B10,1,0)) -> 0 | AF13: =IF(AE10="",0,IF(AF10<=$B10,1,0)) -> 0 | AH13: =IF(AG10="",0,IF(AH10<=$B10,1,0)) -> 0 | AJ13: =IF(AI10="",0,IF(AJ10<=$B10,1,0)) -> 0 | AL13: =IF(AK10="",0,IF(AL10<=$B10,1,0)) -> 0 | AN13: =IF(AM10="",0,IF(AN10<=$B10,1,0)) -> 0 | AP13: =IF(AO10="",0,IF(AP10<=$B10,1,0)) -> 0 | AR13: =IF(AQ10="",0,IF(AR10<=$B10,1,0)) -> 0 | AT13: =IF(AS10="",0,IF(AT10<=$B10,1,0)) -> 0 | AV13: =IF(AU10="",0,IF(AV10<=$B10,1,0)) -> 0 | AX13: =IF(AW10="",0,IF(AX10<=$B10,1,0)) -> 0
D14: =IF(C11="",0,IF(D11<=$B11,1,0)) -> 1 | F14: =IF(E11="",0,IF(F11<=$B11,1,0)) -> 0 | H14: =IF(G11="",0,IF(H11<=$B11,1,0)) -> 0 | J14: =IF(I11="",0,IF(J11<=$B11,1,0)) -> 0 | L14: =IF(K11="",0,IF(L11<=$B11,1,0)) -> 0 | N14: =IF(M11="",0,IF(N11<=$B11,1,0)) -> 0 | P14: =IF(O11="",0,IF(P11<=$B11,1,0)) -> 0 | R14: =IF(Q11="",0,IF(R11<=$B11,1,0)) -> 0 | T14: =IF(S11="",0,IF(T11<=$B11,1,0)) -> 0 | V14: =IF(U11="",0,IF(V11<=$B11,1,0)) -> 0 | X14: =IF(W11="",0,IF(X11<=$B11,1,0)) -> 0 | Z14: =IF(Y11="",0,IF(Z11<=$B11,1,0)) -> 0 | AB14: =IF(AA11="",0,IF(AB11<=$B11,1,0)) -> 0 | AD14: =IF(AC11="",0,IF(AD11<=$B11,1,0)) -> 0 | AF14: =IF(AE11="",0,IF(AF11<=$B11,1,0)) -> 0 | AH14: =IF(AG11="",0,IF(AH11<=$B11,1,0)) -> 0 | AJ14: =IF(AI11="",0,IF(AJ11<=$B11,1,0)) -> 0 | AL14: =IF(AK11="",0,IF(AL11<=$B11,1,0)) -> 0 | AN14: =IF(AM11="",0,IF(AN11<=$B11,1,0)) -> 0 | AP14: =IF(AO11="",0,IF(AP11<=$B11,1,0)) -> 0 | AR14: =IF(AQ11="",0,IF(AR11<=$B11,1,0)) -> 0 | AT14: =IF(AS11="",0,IF(AT11<=$B11,1,0)) -> 0 | AV14: =IF(AU11="",0,IF(AV11<=$B11,1,0)) -> 0 | AX14: =IF(AW11="",0,IF(AX11<=$B11,1,0)) -> 0
D15: =IF(C12="",0,IF(D12<=$B12,1,0)) -> 1 | F15: =IF(E12="",0,IF(F12<=$B12,1,0)) -> 0 | H15: =IF(G12="",0,IF(H12<=$B12,1,0)) -> 0 | J15: =IF(I12="",0,IF(J12<=$B12,1,0)) -> 0 | L15: =IF(K12="",0,IF(L12<=$B12,1,0)) -> 0 | N15: =IF(M12="",0,IF(N12<=$B12,1,0)) -> 0 | P15: =IF(O12="",0,IF(P12<=$B12,1,0)) -> 0 | R15: =IF(Q12="",0,IF(R12<=$B12,1,0)) -> 1 | T15: =IF(S12="",0,IF(T12<=$B12,1,0)) -> 1 | V15: =IF(U12="",0,IF(V12<=$B12,1,0)) -> 1 | X15: =IF(W12="",0,IF(X12<=$B12,1,0)) -> 1 | Z15: =IF(Y12="",0,IF(Z12<=$B12,1,0)) -> 1 | AB15: =IF(AA12="",0,IF(AB12<=$B12,1,0)) -> 0 | AD15: =IF(AC12="",0,IF(AD12<=$B12,1,0)) -> 1 | AF15: =IF(AE12="",0,IF(AF12<=$B12,1,0)) -> 1 | AH15: =IF(AG12="",0,IF(AH12<=$B12,1,0)) -> 1 | AJ15: =IF(AI12="",0,IF(AJ12<=$B12,1,0)) -> 0 | AL15: =IF(AK12="",0,IF(AL12<=$B12,1,0)) -> 0 | AN15: =IF(AM12="",0,IF(AN12<=$B12,1,0)) -> 1 | AP15: =IF(AO12="",0,IF(AP12<=$B12,1,0)) -> 0 | AR15: =IF(AQ12="",0,IF(AR12<=$B12,1,0)) -> 0 | AT15: =IF(AS12="",0,IF(AT12<=$B12,1,0)) -> 0 | AV15: =IF(AU12="",0,IF(AV12<=$B12,1,0)) -> 0 | AX15: =IF(AW12="",0,IF(AX12<=$B12,1,0)) -> 1
D16: =SUM(D13:D15) -> 2 | F16: =SUM(F13:F15) -> 0 | H16: =SUM(H13:H15) -> 0 | J16: =SUM(J13:J15) -> 0 | L16: =SUM(L13:L15) -> 0 | N16: =SUM(N13:N15) -> 0 | P16: =SUM(P13:P15) -> 0 | R16: =SUM(R13:R15) -> 1 | T16: =SUM(T13:T15) -> 1 | V16: =SUM(V13:V15) -> 1 | X16: =SUM(X13:X15) -> 1 | Z16: =SUM(Z13:Z15) -> 1 | AB16: =SUM(AB13:AB15) -> 0 | AD16: =SUM(AD13:AD15) -> 1 | AF16: =SUM(AF13:AF15) -> 1 | AH16: =SUM(AH13:AH15) -> 1 | AJ16: =SUM(AJ13:AJ15) -> 0 | AL16: =SUM(AL13:AL15) -> 0 | AN16: =SUM(AN13:AN15) -> 1 | AP16: =SUM(AP13:AP15) -> 0 | AR16: =SUM(AR13:AR15) -> 0 | AT16: =SUM(AT13:AT15) -> 0 | AV16: =SUM(AV13:AV15) -> 0 | AX16: =SUM(AX13:AX15) -> 1

Sheet Services Délégués
A1: Retour à l'accueil
A2: EAU | G2: ASSAINISSEMENT | S2: SERVICES MARCHANDS | AA2: PANNEAUX PUBLICITAIRES | AC2: TOTAL
A3: AEV | C3: FPM | E3: PEA | G3: Entretien des voies urbaines | I3: Eclairage public | K3: Collecte et traitement des déchets | M3: Evacuation des eaux usées | O3: Gestion des cimétieres | Q3: Gestion des espaces verts | S3: Gestion des marchés | U3: Gestion des abattoirs | W3: Promotion du tourisme | Y3: Gestions des gares routieres
A4: PREVUES | B4: DELEGUEES | C4: PREVUES | D4: DELEGUEES | E4: PREVUES | F4: DELEGUEES | G4: PREVUS | H4: DELEGUES | I4: PREVUS | J4: DELEGUES | K4: PREVUS | L4: DELEGUES | M4: PREVUS | N4: DELEGUES | O4: PREVUS | P4: DELEGUES | Q4: PREVUS | R4: DELEGUES | S4: PREVUS | T4: DELEGUES | U4: PREVUS | V4: DELEGUES | W4: PREVUS | X4: DELEGUES | Y4: PREVUS | Z4: DELEGUES | AA4: PREVUS | AB4: DELEGUES | AC4: PREVUS | AD4: DELEGUES
A5: 7 | B5: 7 | C5: 510 | D5: 459 | E5: 0 | F5: 0 | G5: 0 | H5: 0 | I5: 0 | J5: 0 | K5: 5 | L5: 5 | M5: 0 | N5: 0 | O5: 0 | P5: 0 | Q5: 1 | R5: 1 | S5: 11 | T5: 1 | U5: 5 | V5: 5 | W5: 0 | X5: 0 | Y5: 1 | Z5: 0 | AA5: 5 | AB5: 5 | AC5: =SUM(A5,C5,E5,G5,I5,K5,M5,O5,Q5,S5,U5,W5,Y5,AA5) -> 545 | AD5: =SUM(B5,D5,F5,H5,J5,L5,N5,P5,R5,T5,V5,X5,Z5,AB5) -> 483

Sheet Autres données
A1: Retour à l'accueil
A2: Données à collecter | D2: Valeurs
A3: Fonctionalité des services de la mairie | C3: Nombre de services prévus. | D3: 15
C4: Nombre de services fonctionnels | D4: 15
A5: Manuel de procédure | C5: Existence du manuel de procédure | D5: OUI
C6: Manuel de procédure actualisé. | D6: NON
A7: Evaluation du personnel | C7: Nombre de personnes évalué | D7: 64
C8: Effectif du personnel | D8: 64
A9: Adequation profil/poste | C9: Nombre de postes occupés dans la commune | D9: 42
C10: Nombre d'agents dont le profil correspond au poste occupé | D10: 42
A11: Données Foncieres | B11: Commission de Gestion foncière (COGEF) | C11: Existence de la COGEF | D11: OUI
C12: Nombre d'Attestation de Détention Coutumiere (ADC) demandé | D12: 210
C13: Nombre d'Attestation de Détention Coutumiere (ADC) traité | D13: 170
B14: Nombre de contentieux fonciers impliquant la commune | D14: 3
A15: Système d'information | C15: Existence d’un système de classement et d’archivage | D15: OUI
C16: Existence d’une personne en charge du classement des archivages | D16: OUI
C17: Existence d’un local dédié à l’archivage | D17: OUI
C18: Existence de documents archivés. | D18: OUI
A19: Nombre de délégations | C19: Nombre de délégations de signature pris. | D19: 12
A20: Attributions de pouvoir | C20: Nombre d'attributions de pouvoir pris. | D20: 1
A21: Séances de reddition de comptes | C21: Nombre de séances tenues | D21: 2
C22: Nombre de séances prévues. | D22: 2
A23: Activités spécifiques en faveur des femmes | C23: Nombre d’activités spécifiques réalisées en faveur des femmes | D23: 22
C24: Nombre d’activités réalisées dans le PTA | D24: 63
A25: Informations sur les prestations de la commune | C25: Existence d’un lieu publique dédié à l'informations sur les prestations de la commune | D25: OUI
C26: Existence d'une personne en charge de l'information | D26: OUI
A27: SDAC en cours de validité | C27: Existence ou non d'un SDAC | D27: OUI
A28: PDC en cours de validité | C28: Existence ou non d’un PDC | D28: OUI
A29: Suivi évaluation des PTA/PAI/PAD | C29: Nombre de séances de suivi évaluation des PTA | D29: 4
C30: Nombre de séances de suivi évaluation des PAI | D30: 4
C31: Nombre de séances de suivi évaluation des PAD | D31: 2
A32: Infrastructures économiques et marchandes | C32: Nombre réalisées en année 2022 | D32: 23
C33: Nombre réalisées en année 2021 | D33: 34
A34: TBS | C34: Existence d’un TBS actualisé | D34: NON
C35: Date d’actualisation
A36: Coopération décentralisée | C36: Nombre d’accord actif | D36: 0
C37: Nombre d’activités réalisées provenants de ces accords | D37: 0

Sheet Récapitulatif (hidden)
A1: Données à traiter | C1: Valeurs
A2: Nombre de sessions ordinaires tenues | C2: =COUNTA(CC!C6:C9) -> 4
A3: Nombre de services prévus. | C3: ='Autres données'!D3 -> 15
A4: Nombre de services existant doté en personnel. | C4: ='Autres données'!D4 -> 15
A5: Nombre d’élus du conseil communal | C5: =CC!D4 -> 33
A6: Nombre de conseillers présents à chaque conseil communal | C6: =SUMIF(CC!C6:C9,"<>",CC!B6:B9) -> 124
A7: Existence du manuel de procédure actualisé. | C7: =IF(OR('Autres données'!D5="NON",'Autres données'!D5=""),0,IF('Autres données'!D6="OUI",1,0.5)) -> 0.5
A8: Nombre de fiches d’évaluation du personnel évalué dans l’année. | C8: ='Autres données'!D7 -> 64
A9: Nombre de personnes à évaluer. | C9: ='Autres données'!D8 -> 64
A10: Nombre de commissions permanentes existantes. | C10: =CP!C15 -> 4
A11: Nombre de sessions des commissions permamentes | C11: =SUM(CP!D15,CP!G15,CP!J15,CP!M15,CP!P15,CP!V15,CP!Y15,CP!AB15,CP!AE15,CP!AH15,CP!AK15) -> 18
A12: Nombre présents commission permanente | C12: =SUM(CP!D16,CP!G16,CP!J16,CP!M16,CP!P16,CP!V16,CP!Y16,CP!AB16,CP!AE16,CP!AH16,CP!AK16) -> 152
A13: Nombre de propositions formulées par les commissions permanentes | C13: =SUM(CP!E16,CP!H16,CP!K16,CP!N16,CP!Q16,CP!T16,CP!W16,CP!Z16,CP!AC16,CP!AF16,CP!AI16,CP!AL16) -> 79
A14: Nombre de propositions formulées par les commissions permanentes réalisées. | C14: =SUM(CP!F16,CP!I16,CP!L16,CP!O16,CP!R16,CP!U16,CP!X16,CP!AA16,CP!AD16,CP!AG16,CP!AJ16,CP!AM16) -> 71
A15: Nombre de postes occupés | C15: ='Autres données'!D9 -> 42
A16: Nombre de postes occupés correspondant au profil recherché | C16: ='Autres données'!D10 -> 42
A17: Existence ou non d’un système de documentation et d’archivage | C17: =IF('Autres données'!D15="OUI",1,0) -> 1
A18: Existence ou non d’une personne en charge de la documentation et d’archivage | C18: =IF('Autres données'!D16="OUI",1,0) -> 1
A19: Existence ou non d’un local dédié à la documentation et d’archivage | C19: =IF('Autres données'!D17="OUI",1,0) -> 1
A20: Existence ou non de document archivés. | C20: =IF('Autres données'!D18="OUI",1,0) -> 1
A21: Nombre de services publics susceptibles d’être délégués | C21: ='Services Délégués'!AC5 -> 545
A22: Nombre de services publics délégués dans l’année | C22: ='Services Délégués'!AD5 -> 483
A23: Nombre total de rapports produits dans l’année | C23: =COUNTIF(CC!F6:F9,"=OUI") -> 4
A24: Nombre total de rapports à produire dans l’année. | C24: =C2 -> 4 | D24: nombre de session dans l'année =4
A25: Nombre de réunions de la municipalité | C25: =CC!D3 -> 10
A26: Nombre de réunions prévues | C26: 12 | D26: limité à 12
A27: Nombre total de sessions de conseils d’arrondissement tenues au cours de l’année | C27: =SUM(CA!B3:B50) -> 68 | D27: somme dans CA
A28: Nombre d’arrondissements | C28: 10
A29: Nombre total de réunions de conseils de village tenues au cours de l’année | C29: =SUM(CV!C5:C100) -> 90 | D29: somme d&ns CV
A30: Nombre de villages | C30: 112
A31: Nombre de documents ou d’arrêtés portant délégation de signature pris. | C31: ='Autres données'!D19 -> 12
A32: Nombre de document ou arrêtés portant délégation de pouvoir pris. | C32: ='Autres données'!D20 -> 1
A33: Montant du budget prévisionnel | C33: =Budget!A5 -> 2614941026
A34: Montant du Budget Consommé | C34: =E37+C39 -> 2172006139
A35: Recette fiscales previsionnelles | C35: =Budget!B5 -> 484894647
A36: Dépenses d'investissement | B36: Ressources propres | C36: =Budget!D5 -> 663708231
B37: Investissement provenant de la coopération décentralisée | C37: =Budget!E5 -> 0 | E37: =SUM(C36:C38) -> 1580715372
B38: Autres ressources | C38: =Budget!F5 -> 917007141
A39: Dépenses totales de fonctionnement | C39: =Budget!G5 -> 591290767
A40: Dépenses d'entretien des équipements et ouvrages | C40: =Budget!H5 -> 15400000
A41: Montant des ressources propres de l'année n-1 | C41: =Budget!K5 -> 662517614
A42: Montant des ressources propres de l'année n | C42: =Budget!L5 -> 616990647
A43: Recettes fiscales recouvrées | C43: =Budget!I5 -> 608931929
A44: Montant des cotisations versées à échéance | C44: =Budget!M5 -> 14500000
A45: Montant des cotisations dues à échéance | C45: =Budget!N5 -> 14500000
A46: Nombre de marchés conclus dans l’année | C46: =Marchés!E5 -> 24
A47: =Marchés!A3 -> Plan de passation des marchés publics publiés | C47: =IF(Marchés!E3="OUI",1,0) -> 1
A48: =Marchés!A4:D4 -> Nombre de marchés publics passés hors plan de passation des marchés | C48: =Marchés!E4 -> 0 | D48: =IF(Marchés!E4="",0,IF(Marchés!E4=0,1,0)) -> 1
A49: Nombre de marchés conclus dans l’année et ayant respecté les procédures. | C49: =Marchés!E6 -> 20
A50: Délai moyen de passation des marchés publics communaux | C50: =IF(C46=0,0,D50/C46) -> 0.5 | D50: =SUM(Marchés!$D$16:$WG$16) -> 12
A51: Nombre de fois où les relevés des délibérations affichés | C51: =COUNTA(CC!E6:E9) -> 4
A52: Délai d’affichage | C52: =SUM(CC!I6:I9)/C2 -> 1 | D52: 8 jours maxi aprs la fin de la session
A53: Nombre de séances de reddition de comptes | C53: ='Autres données'!D21 -> 2
A54: Nombre de séances de reddition de comptes prévus. | C54: ='Autres données'!D22 -> 2
A55: Nombre d’actions spécifiques réalisées en faveur des femmes | C55: ='Autres données'!D23 -> 22
A56: Nombre d’actions spécifiques réalisées dans le PTA | C56: ='Autres données'!D24 -> 63
A57: ='Autres données'!C25 -> Existence d’un lieu publique dédié à l'informations sur les prestations de la commune | C57: =IF('Autres données'!D25="OUI",1,0) -> 1
A58: ='Autres données'!C26 -> Existence d'une personne en charge de l'information | C58: =IF('Autres données'!D26="OUI",1,0) -> 1
A59: Nombre de cadres de concertation. | C59: =COUNTA('Cadres de Concertation'!F6:L6) -> 6 | D59: =IF(C59<=0,0,IF(C59>3,1,C59/4)) -> 1
A60: Nombre moyen de réunions du cadre de concertation tenu | C60: =SUM('Cadres de Concertation'!F6:L6)/C59 -> 2.333333333 | D60: =IF(C60<=0.5,0,IF(C60<1.5,0.25,IF(C60<2.5,0.5,IF(C60<4,0.75,1)))) -> 0.5
A61: Existence ou non d’un SDAC. | C61: =IF('Autres données'!D27="OUI",1,0) -> 1
A62: Existence ou non d’un PDC | C62: =IF('Autres données'!D28="OUI",1,0) -> 1
A63: Montant PAI prévision | C63: =Budget!C5 -> 1580715372
A64: Montant PAI réalisé | C64: =Budget!J5 -> 1580715372
A65: Nombre de séances de suivi évaluation des PTA/PAI/PAD | C65: =SUM('Autres données'!D29:D31) -> 10
A66: Nombre d’infrastructures économiques et marchandes réalisées en année n | C66: ='Autres données'!D32 -> 23
A67: Nombre d’infrastructures économiques et marchandes réalisées en année n-1 | C67: ='Autres données'!D33 -> 34
A68: Nombre d'EPC demandé (village) | C68: =SUM(CV!D5:D191) -> 208 | F68: somme
A69: Nombre d'EPC réalisé (Village) | C69: =SUM(CV!E5:E191) -> 170
A70: Nombre de ADC demandé (Commune-Autre données) | C70: ='Autres données'!D12 -> 210
A71: Nombre de ADC réalisé (Commune-Autre données) | C71: ='Autres données'!D13 -> 170
A72: Existence ou inexistence d’un tableau de bord social actualisé | C72: =IF('Autres données'!D34="OUI",1,0) -> 0
A73: Date d’actualisation du tableau de bord social | C73: ='Autres données'!D35 -> 00:00:00
A74: Existence d'un tableau de bord | C74: ='Autres données'!D34 -> NON
A75: Nombre d’ accord de coopération décentralisée. | C75: =IF('Autres données'!D36<1,0,IF('Autres données'!D36=1,0.5,1)) -> 0
A76: Nombre d’activités des accords de coopération décentralisées réalisées. | C76: =IF('Autres données'!D37<1,0,IF('Autres données'!D37<3,0.5,1)) -> 0
A77: Nombre de conflits fonciers impliquant la commune | C77: =IF('Autres données'!D14="","",'Autres données'!D14) -> 3 | D77: =IF(C77="",0,IF(C77=0,1,IF(C77<=3,0.75,IF(C77<=8,0.5,IF(C77<=15,0.25,0))))) -> 0.75
A78: Nombre de participation du maire ou de son représentant au CDCC au cours de l’année | C78: =COUNTIF(Tutelle!B5:B6,">0") -> 2 | D78: feuille tutelle (compter le nombre de lignes 5 ou 6 rempli
A79: Nombre de CDCC tenus dans l’année. | C79: =COUNTA(Tutelle!C5:C6) -> 2 | D79: fixer à 2
A80: Nombre total de présence du maire ou de ses adjoints au CDCC | C80: =SUMIF(Tutelle!C5:C6,"<>",Tutelle!B5:B6) -> 6
A81: Nombre total attendu (Maire et ses adjoints) pour toutes les sessions | C81: =C79*Tutelle!C3 -> 6
A82: Nombre d’actes communaux conformes en une année | C82: =Tutelle!D8 -> 51
A83: Nombre d’actes communaux soumis à la tutelle en un an | C83: =Tutelle!D9 -> 72
A84: Le budget est transmis ou pas. | C84: =IF(Tutelle!H2="TRANSMIS",1,0) -> 1
A85: Délai de transmission du budget après adoption par le conseil communal | C85: =IF(Budget!Q5="",0,IF(Budget!Q5<=DATE(Acceuil!P12,3,31),1,0)) -> 0
A86: Délai d'approbation du budget par la tutelle | C86: =IF(OR(Tutelle!H4="",Tutelle!H5=""),0,IF(Tutelle!H5<=EDATE(Tutelle!H4,1),1,0)) -> 0 | D86: si<1mois, 1, 0 sinon
A87: Le compte administratif est transmis ou pas. | C87: =IF(Tutelle!H6="TRANSMIS",1,0) -> 1
A88: Délai de transmission du compte administratif après adoption par le conseil communal | C88: =IF(Tutelle!H7="",0,IF(Tutelle!H7<=DATE(Acceuil!P12+1,6,30),1,0)) -> 1
A89: Délai d'approbation du compte administratif par la tutelle | C89: =IF(OR(Tutelle!H8="",Tutelle!H9=""),0,IF(Tutelle!H9<=EDATE(Tutelle!H8,1),1,0)) -> 1
A90: Nombre de réunions du cadre de concertation prévu (Mairie + SDE) | C90: ='Cadres de Concertation'!C5 -> 2
A91: Nombre de réunions du cadre de concertation tenu (Mairie + SDE) | C91: =COUNTA('Cadres de Concertation'!C7:C18) -> 2 | E91: =C91/C90 -> 1 | F91: =C92/C93 -> 0.75
A92: Nombre total des membres présents (Mairie + SDE) | C92: =SUMIF('Cadres de Concertation'!C7:C18,"<>",'Cadres de Concertation'!B7:B18) -> 27
A93: Nombre total des membres attendus (Mairie + SDE) | C93: ='Cadres de Concertation'!C4*Récapitulatif!C91 -> 36

Sheet Indicateurs (hidden)
A1: D1 | B1: 1 | C1: Taux de realisation des sessions ordinaires du conseil communal | D1: =Récapitulatif!C2/4 -> 1
B2: 2 | C2: Taux de services fonctionnels | D2: =Récapitulatif!C4/Récapitulatif!C3 -> 1
B3: 3 | C3: Taux de participation des élus aux conseils communaux | D3: =Récapitulatif!C6/(Récapitulatif!C5*Récapitulatif!C2) -> 0.9393939394
B4: 4 | C4: Existance d'un manuel de procedure à jour | D4: =Récapitulatif!C7 -> 0.5
B5: 5 | C5: Taux de personnes évaluées | D5: =Récapitulatif!C8/Récapitulatif!C9 -> 1
B6: 6 | C6: Taux de commissions permanentes fonctionnelles | D6: =((Récapitulatif!C11/Récapitulatif!C10)+(Récapitulatif!C12/CP!AP15)+(Récapitulatif!C14/Récapitulatif!C13))/3 -> 2.12645978
B7: 7 | C7: Taux d'adéquation profil/poste | D7: =Récapitulatif!C16/Récapitulatif!C15 -> 1
B8: 8 | C8: Fonctionalité du système de classement et d'archivage | D8: =SUM(Récapitulatif!C17:C20)/4 -> 1
B9: 9 | C9: Taux de services publics locaux en gestion déléguée | D9: =Récapitulatif!C22/Récapitulatif!C21 -> 0.8862385321
B10: 10 | C10: Taux de realisation des rapports d'activités du maire | D10: =Récapitulatif!C23/Récapitulatif!C24 -> 1
B11: 11 | C11: Taux de tenu des reunions de municipalité | D11: =Récapitulatif!C25/Récapitulatif!C26 -> 0.8333333333
B12: 12 | C12: Taux moyen de tenue des sessions du conseil d'arrondissement | D12: =Récapitulatif!C27/Récapitulatif!C28 -> 6.8
B13: 13 | C13: Taux moyen de tenue des sessions du conseil de villages | D13: =Récapitulatif!C29/Récapitulatif!C30 -> 0.8035714286
B14: 14 | C14: Nombre de délégation de signature du maire aux adjoints | D14: =Récapitulatif!C31 -> 12
B15: 15 | C15: Nombre de délégation de pouvoir éffectué par le maire | D15: =Récapitulatif!C32 -> 1
A16: D2 | B16: 1 | C16: Taux d'éxecution du budget communal | D16: =Récapitulatif!C34/Récapitulatif!C33 -> 0.830613814
B17: 2 | C17: Taux d'autofinancement des Investissements | D17: =Récapitulatif!C36/Récapitulatif!E37 -> 0.4198783935
B18: 3 | C18: Part des Investissements dans les dépenses totales de la commune | D18: =Récapitulatif!E37/Récapitulatif!C34 -> 0.7277674513
B19: 4 | C19: Part des dépenses d'entretien des équipements et ouvrages dans les depenses de fonctionnement | D19: =Récapitulatif!C40/Récapitulatif!C39 -> 0.02604471583
B20: 5 | C20: Adoption du budget dans les délais | D20: =IF(Tutelle!H3="",0,IF(Tutelle!H3<DATE(Acceuil!P12,1,1),1,0)) -> 1
B21: 6 | C21: Respect du délai de vote du compte administratif | D21: =IF(Tutelle!H7="",0,IF(Tutelle!H7<=DATE(Acceuil!P12,6,30),1,0)) -> 0
B22: 7 | C22: Taux d'accroissement des ressources propres | D22: =(Récapitulatif!C42-Récapitulatif!C41)/Récapitulatif!C41 -> -0.06871812317
B23: 8 | C23: Taux de recouvrement fiscal | D23: =Récapitulatif!C43/Récapitulatif!C35 -> 1.255802539
B24: 9 | C24: délai moyen de passation des marchés publics communaux | D24: =Récapitulatif!C50/Récapitulatif!C46 -> 0.02083333333
B25: 10 | C25: Existance des plans de passation des marchés validés et publiés | D25: =(Récapitulatif!C47+Récapitulatif!D48)/2 -> 1
B26: 11 | C26: Ratio des marchés publics ayant respecté les procédures | D26: =Récapitulatif!C49/Récapitulatif!C46 -> 0.8333333333
A27: D3 | B27: 1 | C27: Affichage des relevés des décisions du Conseil Communal dans les délai | D27: =((Récapitulatif!C51/Récapitulatif!C2)+Récapitulatif!C52)/2 -> 1
B28: 2 | C28: Taux de réalisation des seances de reddition de compte | D28: =Récapitulatif!C53/Récapitulatif!C54 -> 1
B29: 3 | C29: Nombre d'actions spécifiques en faveur des femmes au cours de l'année | D29: =Récapitulatif!C55/Récapitulatif!C56 -> 0.3492063492
B30: 4 | C30: Existance d'un mecanisme d'information du public par rapport aux prestations de la commune | D30: =(Récapitulatif!C57+Récapitulatif!C58)/2 -> 1
B31: 5 | C31: Nombre de cadre de concertation fonctionnel | D31: =(Récapitulatif!D59+Récapitulatif!D60)/2 -> 0.75
A32: D4 | B32: 1 | C32: Existance d'un SDAC | D32: =Récapitulatif!C61 -> 1
B33: 2 | C33: Existance d'un PDC | D33: =(Récapitulatif!C62+(Récapitulatif!C64/Récapitulatif!C63))/2 -> 1
B34: 3 | C34: Nombre de reunions de suivi-évaluation du PTA/PAI/PAD | D34: =Récapitulatif!C65 -> 10
B35: 4 | C35: Taux d'accroissement des infrastructures économiques et marchandes | D35: =(Récapitulatif!C66-Récapitulatif!C67)/Récapitulatif!C67 -> -0.3235294118
B36: 5 | C36: Fonctionalité des organes de gestion fonciere aux niveaux communal et infra communal | D36: =((Récapitulatif!C69/Récapitulatif!C68)+(Récapitulatif!C71/Récapitulatif!C70))/2 -> 0.8134157509
B37: 6 | C37: Existance d'un tableau de bord social actualisé | D37: =Récapitulatif!C72 -> 0
B38: 7 | C38: Nombre d'accord de cooperation decentralisée mise en œuvre | D38: =(Récapitulatif!C75+Récapitulatif!C76)/2 -> 0
B39: 8 | C39: Taux de paiement des cotisations de la commune à l'intercommunalité | D39: =IF(Récapitulatif!C45=0,0,Récapitulatif!C44/Récapitulatif!C45) -> 1
B40: 9 | C40: Nombre de contentieux fonciers impliquant la Mairie | D40: =Récapitulatif!D77 -> 0.75
A41: D5 | B41: 1 | C41: Nombre de participations au CDCC | D41: =((Récapitulatif!C78/Récapitulatif!C79)+(Récapitulatif!C80/Récapitulatif!C81))/2 -> 1
B42: 2 | C42: Taux de conformité des actes communaux | D42: =IF(Récapitulatif!C83=0,0,Récapitulatif!C82/Récapitulatif!C83) -> 0.7083333333
B43: 3 | C43: Transmission du budget dans les délais | D43: =SUM(Récapitulatif!C84:C86)/3 -> 0.3333333333
B44: 4 | C44: Transmission du compte administratif dans les délais | D44: =SUM(Récapitulatif!C87:C89)/3 -> 1
B45: 5 | C45: Animation d'un cadre de concertation entre le maire et les services déconcentrés communaux | D45: =(Récapitulatif!E91+Récapitulatif!F91)/2 -> 0.875
